Workbook

Sheet Gamut
A7: Condition | B7: Color | C7: IRE | D7: x | E7: y | F7: L
A8: NTSC | B8: Red | C8: 100 | D8: 0.67 | E8: 0.33 | F8: 29.9
B9: Green | C9: 100 | D9: 0.21 | E9: 0.71 | F9: 58.7
B10: Blue | C10: 100 | D10: 0.14 | E10: 0.08 | F10: 11.4
B11: Red | C11: 100 | D11: 0.67 | E11: 0.33 | F11: 29.9
B12: White | C12: 100 | D12: 0.3127 | E12: 0.329 | F12: 100
B13: Black | C13: 0 | D13: 0.3127 | E13: 0.329 | F13: 0.01
B14: Contrast | D14: =F12/F13 -> 10000
B15: NTSC(%) | D15: =(50*ABS(D8*E9-D9*E8+D9*E10-D10*E9+D10*E8-D8*E10)/0.159) -> 99.49685535
A19: Condition | B19: Color | C19: IRE | D19: x | E19: y | F19: L
A20: TCL_PQ样机 | B20: Red | C20: 100
B21: Green | C21: 100
B22: Blue | C22: 100
B23: Red | C23: 100 | D23: =D20 -> 0 | E23: =E20 -> 0 | F23: =F20 -> 0
B24: White | C24: 100
B25: Black | C25: 0
B26: 棋盘格对比度 | D26: =F24/F25 -> 
B27: NTSC(%) | D27: =(50*ABS(D20*E21-D21*E20+D21*E22-D22*E21+D22*E20-D20*E22)/0.159) -> 0
B28: 纯色一致性 | D28: OK/NG
A32: Condition | B32: Color | C32: IRE | D32: x | E32: y | F32: L
A33: 标准 | B33: Red | C33: 55 | D33: =0.298 -> 0.298 | E33: 0.314
B34: Green | C34: 100 | D34: 0.298 | E34: 0.344
B35: Blue | C35: 100 | D35: 0.328 | E35: 0.344
B36: Red | C36: 100 | D36: 0.328 | E36: 0.314 | F36: =F33 -> 0
B37: White | C37: 100 | D37: 0.313 | E37: 0.329
B38: Black | C38: 0
B39: 棋盘格对比度 | D39: =F37/F38 ->  | F39: OK
B40: NTSC(%) | D40: =(50*ABS(D33*E34-D34*E33+D34*E35-D35*E34+D35*E33-D33*E35)/0.159) -> 0.2830188679
B41: 纯色一致性 | D41: OK/NG
J43: 标准 | K43: 范围 | M43: 实测
K44: =J45-0.015 -> 0.298
A45: Condition | B45: Color | C45: IRE | D45: x | E45: y | F45: L | I45: x | J45: 0.313 | M45: 0.291
A46: 实测 | B46: Red | C46: 100 | K46: =J45+0.015 -> 0.328
B47: Green | C47: 100 | K47: =J48-0.015 -> 0.314
B48: Blue | C48: 100 | I48: y | J48: 0.329 | M48: 0.294
B49: Red | C49: 100 | D49: =D46 -> 0 | E49: =E46 -> 0 | F49: =F46 -> 0 | K49: =J48+0.015 -> 0.344
B50: White | C50: 100 | D50: 0.291 | E50: 0.294
B51: Black | C51: 0
B52: 棋盘格对比度 | D52: =F50/F51 ->  | F52: OK
B53: NTSC(%) | D53: =(50*ABS(D46*E47-D47*E46+D47*E48-D48*E47+D48*E46-D46*E48)/0.159) -> 0
B54: 纯色一致性 | D54: OK/NG
A58: Condition | B58: Color | C58: IRE | D58: x | E58: y | F58: L
B59: Red | C59: 100
B60: Green | C60: 100
B61: Blue | C61: 100
B62: Red | C62: 100 | D62: =D59 -> 0 | E62: =E59 -> 0 | F62: =F59 -> 0
B63: White | C63: 100
B64: Black | C64: 0
B65: 棋盘格对比度 | D65: =F63/F64 ->  | F65: OK
B66: NTSC(%) | D66: =(50*ABS(D59*E60-D60*E59+D60*E61-D61*E60+D61*E59-D59*E61)/0.159) -> 0
B67: 纯色一致性 | D67: OK/NG

Sheet gamma
B4: standard | D4: 关动态背光 | F4: 关动态对比度
A5: MTK | B5: Self | C5: IRE | D5: (x,y) and L | G5: L_Bar | H5: Gamma
B6: 屏内部灰场 | D6: x | E6: y | F6: L | G6: L_Bar | H6: 2.2
B7: 0 | C7: 0 | D7: 0.2601123941 | E7: 0.2471566107 | F7: 0.0591404 | G7: =F7/F17 -> 0.000185770392 | H7: =(C7/100)^$H$6 -> 0
B8: 25 | C8: 10 | D8: 0.3241807597 | E8: 0.3340451246 | F8: 3.2843948 | G8: =F8/F17 -> 0.01031686139 | H8: 0.006309573445 | I8: =LOG(F8/$F$17,0.1) -> 1.986452404
B9: 51 | C9: 20 | D9: 0.3242461643 | E9: 0.3327858143 | F9: 11.674753 | G9: =F9/F17 -> 0.03667245135 | H9: 0.02899118655 | I9: =LOG(F9/$F$17,0.2) -> 2.053965192 | O9: =O18*0.1 -> 102.3
B10: 76 | C10: 30 | D10: 0.3262792466 | E10: 0.3354209994 | F10: 24.805094 | G10: =F10/F17 -> 0.07791716047 | H10: 0.0707402777 | I10: =LOG(F10/$F$17,0.3) -> 2.119739792 | O10: =O18*0.2 -> 204.6
B11: 102 | C11: 40 | D11: 0.3274625246 | E11: 0.3368897772 | F11: 46.069327 | G11: =F11/F17 -> 0.1447118541 | H11: 0.1332085132 | I11: =LOG(F11/$F$17,0.4) -> 2.109604146 | O11: =O18*0.3 -> 306.9
B12: 127 | C12: 50 | D12: 0.3270115089 | E12: 0.3356702581 | F12: 73.847154 | G12: =F12/F17 -> 0.2319668915 | H12: 0.2176376408 | I12: =LOG(F12/$F$17,0.5) -> 2.10800919 | O12: =O18*0.4 -> 409.2
B13: 153 | C13: 60 | D13: 0.3273173561 | E13: 0.3351681938 | F13: 107.94637 | G13: =F13/F17 -> 0.3390785229 | H13: 0.3250369625 | I13: =LOG(F13/$F$17,0.6) -> 2.117206963 | O13: =O18*0.5 -> 511.5
B14: 178 | C14: 70 | D14: 0.3276871586 | E14: 0.3353887088 | F14: 148.67271 | G14: =F14/F17 -> 0.4670071157 | H14: 0.4562634584 | I14: =LOG(F14/$F$17,0.7) -> 2.13474705 | O14: =O18*0.6 -> 613.8
B15: 204 | C15: 80 | D15: 0.3280227331 | E15: 0.3358583913 | F15: 196.7952 | G15: =F15/F17 -> 0.6181683157 | H15: 0.6120655999 | I15: =LOG(F15/$F$17,0.8) -> 2.155538443 | O15: =O18*0.7 -> 716.1
B16: 229 | C16: 90 | D16: 0.3279114278 | E16: 0.3362317407 | F16: 252.77291 | G16: =F16/F17 -> 0.7940041425 | H16: 0.7931101735 | I16: =LOG(F16/$F$17,0.9) -> 2.189307816 | O16: =O18*0.8 -> 818.4
B17: 255 | C17: 100 | D17: 0.3260984715 | E17: 0.3358381016 | F17: 318.35213 | G17: =F17/F17 -> 1 | H17: =(C17/100)^$H$6 -> 1 | O17: =O18*0.9 -> 920.7
O18: 1023
B21: film
B22: Self | C22: IRE | D22: (x,y) and L | G22: L_Bar | H22: Gamma
B23: 屏内部灰场 | D23: x | E23: y | F23: L | G23: L_Bar | H23: 2.2
B24: 0 | C24: 0 | D24: 0.2571491794 | E24: 0.2384369365 | F24: 0.0508596 | G24: =F24/F34 -> 0.0001717186771 | H24: =(C24/100)^$H$23 -> 0 | O24: 0
B25: 25 | C25: 10 | D25: 0.3078862859 | E25: 0.3139138186 | F25: 1.3401222 | G25: =F25/F34 -> 0.004524691726 | H25: =(C25/100)^$H$23 -> 0.006309573445 | I25: =LOG(F25/$F$34,0.1) -> 2.344411005 | O25: =512*0.1 -> 51.2
B26: 51 | C26: 20 | D26: 0.3094781501 | E26: 0.3238051305 | F26: 8.0642934 | G26: =F26/F34 -> 0.02722769731 | H26: 0.02899118655 | I26: =LOG(F26/$F$34,0.2) -> 2.238993199 | O26: =512*0.2 -> 102.4
B27: 76 | C27: 30 | D27: 0.3094532361 | E27: 0.3252857045 | F27: 19.767569 | G27: =F27/F34 -> 0.06674179108 | H27: 0.0707402777 | I27: =LOG(F27/$F$34,0.3) -> 2.248326507 | O27: =512*0.3 -> 153.6
B28: 102 | C28: 40 | D28: 0.3097629509 | E28: 0.3262133283 | F28: 38.771954 | G28: =F28/F34 -> 0.1309068229 | H28: 0.1332085132 | I28: =LOG(F28/$F$34,0.4) -> 2.21902221 | O28: =512*0.4 -> 204.8
B29: 127 | C29: 50 | D29: 0.3101689423 | E29: 0.3262052176 | F29: 63.75921 | G29: =F29/F34 -> 0.2152719878 | H29: 0.2176376408 | I29: =LOG(F29/$F$34,0.5) -> 2.215767493 | O29: =512*0.5 -> 256
B30: 153 | C30: 60 | D30: 0.31048632 | E30: 0.326283583 | F30: 96.054392 | G30: =F30/F34 -> 0.3243111059 | H30: 0.3250369625 | I30: =LOG(F30/$F$34,0.6) -> 2.204376539 | O30: =512*0.6 -> 307.2
B31: 178 | C31: 70 | D31: 0.3105181387 | E31: 0.3257381203 | F31: 134.27468 | G31: =F31/F34 -> 0.4533553236 | H31: 0.4562634584 | I31: =LOG(F31/$F$34,0.7) -> 2.217927263 | O31: =512*0.7 -> 358.4
B32: 204 | C32: 80 | D32: 0.3112464871 | E32: 0.3269366503 | F32: 181.37169 | G32: =F32/F34 -> 0.6123702638 | H32: 0.6120655999 | I32: =LOG(F32/$F$34,0.8) -> 2.197769868 | O32: =512*0.8 -> 409.6
B33: 229 | C33: 90 | D33: 0.3106049081 | E33: 0.3267478951 | F33: 234.03896 | G33: =F33/F34 -> 0.7901922272 | H33: 0.7931101735 | I33: =LOG(F33/$F$34,0.9) -> 2.234983723 | O33: =512*0.9 -> 460.8
B34: 255 | C34: 100 | D34: 0.3089474883 | E34: 0.3276041246 | F34: 296.17978 | G34: =F34/F34 -> 1 | H34: 1 | O34: 512
B39: Self | C39: IRE | D39: (x,y) and L | G39: L_Bar | H39: Gamma
B40: 屏内部灰场 | D40: x | E40: y | F40: L | G40: L_Bar | H40: 2.2
B41: 0 | C41: 0 | D41: 0.2301 | E41: 0.1957 | F41: 0.0592 | G41: =F41/F51 -> 0.0001520053407 | H41: =(C41/100)^$H$40 -> 0
B42: 25 | C42: 10 | D42: 0.2672 | E42: 0.2774 | F42: 1.7409 | G42: =F42/F51 -> 0.004470035434 | H42: =(C42/100)^$H$40 -> 0.006309573445 | I42: =LOG(F42/$F$51,0.1) -> 2.349689034
B43: 51 | C43: 20 | D43: 0.2623 | E43: 0.2686 | F43: 9.6754 | G43: =F43/F51 -> 0.02484311611 | H43: 0.02899118655 | I43: =LOG(F43/$F$51,0.2) -> 2.295941057
B44: 76 | C44: 30 | D44: 0.266 | E44: 0.274 | F44: 25.291 | G44: =F44/F51 -> 0.06493863298 | H44: 0.0707402777 | I44: =LOG(F44/$F$51,0.3) -> 2.271075022
B45: 102 | C45: 40 | D45: 0.2664 | E45: 0.2748 | F45: 49.548 | G45: =F45/F51 -> 0.1272223078 | H45: 0.1332085132 | I45: =LOG(F45/$F$51,0.4) -> 2.250180206
B46: 127 | C46: 50 | D46: 0.2662 | E46: 0.2742 | F46: 81.173 | G46: =F46/F51 -> 0.2084244852 | H46: 0.2176376408 | I46: =LOG(F46/$F$51,0.5) -> 2.262403323
B47: 153 | C47: 60 | D47: 0.2661 | E47: 0.2747 | F47: 120.31 | G47: =F47/F51 -> 0.3089149078 | H47: 0.3250369625 | I47: =LOG(F47/$F$51,0.6) -> 2.299589849
B48: 178 | C48: 70 | D48: 0.2667 | E48: 0.2753 | F48: 170.76 | G48: =F48/F51 -> 0.438453243 | H48: 0.4562634584 | I48: =LOG(F48/$F$51,0.7) -> 2.311634491
B49: 204 | C49: 80 | D49: 0.2671 | E49: 0.2762 | F49: 232.78 | G49: =F49/F51 -> 0.5976993786 | H49: 0.6120655999 | I49: =LOG(F49/$F$51,0.8) -> 2.306440673
B50: 229 | C50: 90 | D50: 0.2676 | E50: 0.2771 | F50: 303.17 | G50: =F50/F51 -> 0.7784368099 | H50: 0.7931101735 | I50: =LOG(F50/$F$51,0.9) -> 2.377242162
B51: 255 | C51: 100 | D51: 0.2688 | E51: 0.2785 | F51: 389.46 | G51: =F51/F51 -> 1 | H51: 1

Sheet Sheet1
E5: x | F5: y | G5: Lv | H5: gamma2.2
C6: 0 | D6: 0 | E6: 0.2464 | F6: 0.2175 | G6: 0.0588 | H6: =(C6/$C$70)^2.2*$G$70 -> 0
C7: 1 | D7: =ROUND(C7/64*255,0) -> 4 | E7: 0.2843 | F7: 0.2346 | G7: 0.1326 | H7: 0.03165416214 | I7: =LOG(G7/$G$70,D7/$D$70) -> 1.857312295
C8: 2 | D8: =ROUND(C8/64*255,0) -> 8 | E8: 0.2911 | F8: 0.2714 | G8: 0.2849 | H8: 0.1454443359 | I8: 2.008270264
C9: 3 | D9: 12 | E9: 0.2998 | F9: 0.2919 | G9: 0.4986 | H9: 0.3548931224 | I9: 2.091577809
C10: 4 | D10: 16 | E10: 0.3029 | F10: 0.3011 | G10: 0.7169 | H10: 0.6682866777 | I10: 2.177748003
C11: 5 | D11: 20 | E11: 0.3101 | F11: 0.3212 | G11: 1.1576 | H11: 1.09185466 | I11: 2.180412519
C12: 6 | D12: 24 | E12: 0.3127 | F12: 0.3286 | G12: 1.7174 | H12: 1.630660583 | I12: 2.181713116
C13: 7 | D13: 28 | E13: 0.3119 | F13: 0.3308 | G13: 2.4693 | H13: 2.289003784 | I13: 2.169576441
C14: 8 | D14: 32 | E14: 0.3138 | F14: 0.3324 | G14: 3.154 | H14: 3.07063923 | I14: 2.191243117
C15: 9 | D15: 36 | E15: 0.314 | F15: 0.3316 | G15: 4.1713 | H15: 3.978912085 | I15: 2.180278979
C16: 10 | D16: 40 | E16: 0.3131 | F16: 0.333 | G16: 5.0956 | H16: 5.01684661 | I16: 2.196239833
C17: 11 | D17: 44 | E17: 0.3147 | F17: 0.3347 | G17: 6.1739 | H17: 6.187208196 | I17: 2.206125989
C18: 12 | D18: 48 | E18: 0.313 | F18: 0.3312 | G18: 7.7482 | H18: 7.492548519 | I18: 2.185065838
C19: 13 | D19: 52 | E19: 0.3144 | F19: 0.3334 | G19: 9.0886 | H19: 8.935239498 | I19: 2.194712425
C20: 14 | D20: 56 | E20: 0.3132 | F20: 0.3313 | G20: 10.869 | H20: 10.51749953 | I20: 2.183994036
C21: 15 | D21: 60 | E21: 0.3137 | F21: 0.3323 | G21: 12.415 | H21: 12.24141419 | I21: 2.196219531
C22: 16 | D22: 64 | E22: 0.3137 | F22: 0.3324 | G22: 14.566 | H22: 14.10895293 | I22: 2.183166782
C23: 17 | D23: 68 | E23: 0.3139 | F23: 0.3314 | G23: 16.45 | H23: 16.12198266 | I23: 2.191275866
C24: 18 | D24: 72 | E24: 0.3148 | F24: 0.3338 | G24: 19.064 | H24: 18.28227907 | I24: 2.173699988
C25: 19 | D25: 76 | E25: 0.3156 | F25: 0.3321 | G25: 21.006 | H25: 20.59153606 | I25: 2.190650863
C26: 20 | D26: 80 | E26: 0.3154 | F26: 0.3324 | G26: 23.237 | H26: 23.05137379 | I26: 2.200509051
C27: 21 | D27: 84 | E27: 0.3161 | F27: 0.3324 | G27: 26.266 | H27: 25.66334552 | I27: 2.186851221
C28: 22 | D28: 88 | E28: 0.3156 | F28: 0.3323 | G28: 28.859 | H28: 28.42894351 | I28: 2.193981202
C29: 23 | D29: 92 | E29: 0.3156 | F29: 0.3317 | G29: 32.383 | H29: 31.34960419 | I29: 2.176633684
C30: 24 | D30: 96 | E30: 0.3153 | F30: 0.3324 | G30: 35.206 | H30: 34.42671263 | I30: 2.185901387
C31: 25 | D31: 100 | E31: 0.3147 | F31: 0.3327 | G31: 39.425 | H31: 37.66160653 | I31: 2.160315525
C32: 26 | D32: 104 | E32: 0.3154 | F32: 0.3328 | G32: 42.335 | H32: 41.05557965 | I32: 2.175384645
C33: 27 | D33: 108 | E33: 0.3152 | F33: 0.3331 | G33: 46.807 | H33: 44.60988501 | I33: 2.154062123
C34: 28 | D34: 112 | E34: 0.3143 | F34: 0.3325 | G34: 50.282 | H34: 48.32573762 | I34: 2.162234289
C35: 29 | D35: 116 | E35: 0.3153 | F35: 0.3327 | G35: 54.353 | H35: 52.20431698 | I35: 2.159724372
C36: 30 | D36: 120 | E36: 0.315 | F36: 0.3331 | G36: 59.297 | H36: 56.24676937 | I36: 2.141362187
C37: 31 | D37: 124 | E37: 0.3148 | F37: 0.3321 | G37: 63.048 | H37: 60.45420983 | I37: 2.153674922
C38: 32 | D38: 128 | E38: 0.3143 | F38: 0.3314 | G38: 67.98 | H38: 64.82772407 | I38: 2.143604561
C39: 33 | D39: 131 | E39: 0.3146 | F39: 0.3319 | G39: 70.925 | H39: 69.36837011 | I39: 2.154491733
C40: 34 | D40: 135 | E40: 0.3143 | F40: 0.3313 | G40: 76.285 | H40: 74.07717984 | I40: 2.141831577
C41: 35 | D41: 139 | E41: 0.3139 | F41: 0.3312 | G41: 80.775 | H41: 78.95516041 | I41: 2.150645977
C42: 36 | D42: 143 | E42: 0.3141 | F42: 0.3308 | G42: 86.754 | H42: 84.00329556 | I42: 2.132676838
C43: 37 | D43: 147 | E43: 0.3137 | F43: 0.3306 | G43: 91.117 | H43: 89.22254677 | I43: 2.150410642
C44: 38 | D44: 151 | E44: 0.314 | F44: 0.331 | G44: 97.971 | H44: 94.6138544 | I44: 2.122175967
C45: 39 | D45: 155 | E45: 0.3135 | F45: 0.3305 | G45: 102.64 | H45: 100.1781387 | I45: 2.140110865
C46: 40 | D46: 159 | E46: 0.3139 | F46: 0.331 | G46: 109.66 | H46: 105.9163006 | I46: 2.115492145
C47: 41 | D47: 163 | E47: 0.3135 | F47: 0.3307 | G47: 115.02 | H47: 111.829223 | I47: 2.12630782
C48: 42 | D48: 167 | E48: 0.3133 | F48: 0.33 | G48: 120.43 | H48: 117.9177711 | I48: 2.139506817
C49: 43 | D49: 171 | E49: 0.3135 | F49: 0.3303 | G49: 127.01 | H49: 124.1827934 | I49: 2.133111487
C50: 44 | D50: 175 | E50: 0.3138 | F50: 0.3305 | G50: 132.81 | H50: 130.6251226 | I50: 2.145513242
C51: 45 | D51: 179 | E51: 0.3134 | F51: 0.3301 | G51: 140.25 | H51: 137.2455756 | I51: 2.128505192
C52: 46 | D52: 183 | E52: 0.3132 | F52: 0.3305 | G52: 146.44 | H52: 144.044955 | I52: 2.140113757
C53: 47 | D53: 187 | E53: 0.3129 | F53: 0.3307 | G53: 154.34 | H53: 151.0240492 | I53: 2.119905662
C54: 48 | D54: 191 | E54: 0.3133 | F54: 0.3309 | G54: 160.76 | H54: 158.1836327 | I54: 2.134137272
C55: 49 | D55: 195 | E55: 0.3133 | F55: 0.3312 | G55: 169.69 | H55: 165.5244672 | I55: 2.097500726
C56: 50 | D56: 199 | E56: 0.3132 | F56: 0.3306 | G56: 176.26 | H56: 173.0473019 | I56: 2.116065816
C57: 51 | D57: 203 | E57: 0.313 | F57: 0.3306 | G57: 182.65 | H57: 180.7528735 | I57: 2.144569921
C58: 52 | D58: 207 | E58: 0.3133 | F58: 0.331 | G58: 191.83 | H58: 188.6419072 | I58: 2.11008708
C59: 53 | D59: 211 | E59: 0.3131 | F59: 0.331 | G59: 198.66 | H59: 196.7151171 | I59: 2.138599554
C60: 54 | D60: 215 | E60: 0.3133 | F60: 0.3315 | G60: 208.25 | H60: 204.9732061 | I60: 2.097680786
C61: 55 | D61: 219 | E61: 0.3134 | F61: 0.3317 | G61: 215.39 | H61: 213.4168667 | I61: 2.130251292
C62: 56 | D62: 223 | E62: 0.3132 | F62: 0.3316 | G62: 225.82 | H62: 222.0467812 | I62: 2.065144791
C63: 57 | D63: 227 | E63: 0.3126 | F63: 0.3309 | G63: 232.42 | H63: 230.8636221 | I63: 2.133123076
C64: 58 | D64: 231 | E64: 0.313 | F64: 0.3309 | G64: 242.35 | H64: 239.8680522 | I64: 2.086827312
C65: 59 | D65: 235 | E65: 0.3127 | F65: 0.3308 | G65: 251.07 | H65: 249.0607252 | I65: 2.092672447
C66: 60 | D66: 239 | E66: 0.3122 | F66: 0.3305 | G66: 258.29 | H66: 258.4422858 | I66: 2.200218826
C67: 61 | D67: 243 | E67: 0.312 | F67: 0.3302 | G67: 269.12 | H67: 268.01337 | I67: 2.105712596
C68: 62 | D68: 247 | E68: 0.3119 | F68: 0.3303 | G68: 277.22 | H68: 277.7746055 | I68: 2.253969095
C69: 63 | D69: 251 | E69: 0.3127 | F69: 0.3314 | G69: 289.49 | H69: =(C69/$C$70)^2.2*$G$70 -> 287.7266117 | I69: =LOG(G69/$G$70,D69/$D$70) -> 1.804889424
C70: 64 | D70: 255 | E70: 0.3122 | F70: 0.3312 | G70: 297.87 | H70: =G70 -> 297.87

Sheet WB_normal
A1: 标准色温标准 | B1: 0.28 | C1: 0.288
B5: x | C5: y
A6: 10 | B6: 0.2637 | C6: 0.2616
A7: 20 | B7: 0.2698 | C7: 0.2738 | Q7: x-low | R7: x-high | S7: y-low | T7: y-high | U7: x-ideal | V7: y-ideal
A8: 30 | B8: 0.2697 | C8: 0.2736 | P8: 10 | Q8: =$B$1-0.025 -> 0.255 | R8: =$B$1+0.025 -> 0.305 | S8: =$C$1-0.025 -> 0.263 | T8: =$C$1+0.025 -> 0.313 | U8: =$B$1 -> 0.28 | V8: =$C$1 -> 0.288
A9: 40 | B9: 0.27 | C9: 0.2749 | P9: 20 | Q9: =$B$1-0.02 -> 0.26 | R9: =$B$1+0.02 -> 0.3 | S9: =$C$1-0.02 -> 0.268 | T9: =$C$1+0.02 -> 0.308 | U9: =$B$1 -> 0.28 | V9: =$C$1 -> 0.288
A10: 50 | B10: 0.2697 | C10: 0.2754 | P10: 30 | Q10: =$B$1-0.02 -> 0.26 | R10: =$B$1+0.02 -> 0.3 | S10: =$C$1-0.02 -> 0.268 | T10: =$C$1+0.02 -> 0.308 | U10: 0.28 | V10: 0.288
A11: 60 | B11: 0.2693 | C11: 0.2753 | P11: 40 | Q11: =$B$1-0.015 -> 0.265 | R11: =$B$1+0.015 -> 0.295 | S11: =$C$1-0.015 -> 0.273 | T11: =$C$1+0.015 -> 0.303 | U11: 0.28 | V11: 0.288
A12: 70 | B12: 0.2697 | C12: 0.2765 | P12: 50 | Q12: 0.265 | R12: 0.295 | S12: 0.273 | T12: 0.303 | U12: 0.28 | V12: 0.288
A13: 80 | B13: 0.2706 | C13: 0.2776 | P13: 60 | Q13: 0.265 | R13: 0.295 | S13: 0.273 | T13: 0.303 | U13: 0.28 | V13: 0.288
A14: 90 | B14: 0.2711 | C14: 0.2794 | P14: 70 | Q14: 0.265 | R14: 0.295 | S14: 0.273 | T14: 0.303 | U14: 0.28 | V14: 0.288
A15: 100 | B15: 0.2712 | C15: 0.2816 | P15: 80 | Q15: 0.265 | R15: 0.295 | S15: 0.273 | T15: 0.303 | U15: 0.28 | V15: 0.288
P16: 90 | Q16: 0.265 | R16: 0.295 | S16: 0.273 | T16: 0.303 | U16: 0.28 | V16: 0.288
P17: 100 | Q17: =$B$1-0.02 -> 0.26 | R17: =$B$1+0.02 -> 0.3 | S17: =$C$1-0.02 -> 0.268 | T17: =$C$1+0.02 -> 0.308 | U17: 0.28 | V17: 0.288
B19: x | C19: y
A20: 10 | B20: 0.2459 | C20: 0.2438
A21: 20 | B21: 0.2537 | C21: 0.2542
A22: 30 | B22: 0.2521 | C22: 0.2534
A23: 40 | B23: 0.2543 | C23: 0.2566
A24: 50 | B24: 0.2571 | C24: 0.261
A25: 60 | B25: 0.261 | C25: 0.2664
A26: 70 | B26: 0.2626 | C26: 0.269
A27: 80 | B27: 0.2635 | C27: 0.271
A28: 90 | B28: 0.2641 | C28: 0.2732
A29: 100 | B29: 0.264 | C29: 0.277
B33: x | C33: y
A34: 10
A35: 20
A36: 30
A37: 40
A38: 50
A39: 60
A40: 70
A41: 80
A42: 90
A43: 100

Sheet WB_cool
A1: 冷色温标准 | B1: 0.267 | C1: 0.276
B5: x | C5: y
A6: 10 | B6: 0.2637 | C6: 0.2616
A7: 20 | B7: 0.2698 | C7: 0.2738 | Q7: x-low | R7: x-high | S7: y-low | T7: y-high | U7: x-ideal | V7: y-ideal
A8: 30 | B8: 0.2697 | C8: 0.2736 | P8: 10 | Q8: =$B$1-0.025 -> 0.242 | R8: =$B$1+0.025 -> 0.292 | S8: =$C$1-0.025 -> 0.251 | T8: =$C$1+0.025 -> 0.301 | U8: =$B$1 -> 0.267 | V8: =$C$1 -> 0.276
A9: 40 | B9: 0.27 | C9: 0.2749 | P9: 20 | Q9: =$B$1-0.02 -> 0.247 | R9: =$B$1+0.02 -> 0.287 | S9: =$C$1-0.02 -> 0.256 | T9: =$C$1+0.02 -> 0.296 | U9: =$B$1 -> 0.267 | V9: =$C$1 -> 0.276
A10: 50 | B10: 0.2697 | C10: 0.2754 | P10: 30 | Q10: =$B$1-0.02 -> 0.247 | R10: =$B$1+0.02 -> 0.287 | S10: =$C$1-0.02 -> 0.256 | T10: =$C$1+0.02 -> 0.296 | U10: 0.267 | V10: 0.276
A11: 60 | B11: 0.2693 | C11: 0.2753 | P11: 40 | Q11: =$B$1-0.015 -> 0.252 | R11: =$B$1+0.015 -> 0.282 | S11: =$C$1-0.015 -> 0.261 | T11: =$C$1+0.015 -> 0.291 | U11: 0.267 | V11: 0.276
A12: 70 | B12: 0.2697 | C12: 0.2765 | P12: 50 | Q12: 0.252 | R12: 0.282 | S12: 0.261 | T12: 0.291 | U12: 0.267 | V12: 0.276
A13: 80 | B13: 0.2706 | C13: 0.2776 | P13: 60 | Q13: 0.252 | R13: 0.282 | S13: 0.261 | T13: 0.291 | U13: 0.267 | V13: 0.276
A14: 90 | B14: 0.2711 | C14: 0.2794 | P14: 70 | Q14: 0.252 | R14: 0.282 | S14: 0.261 | T14: 0.291 | U14: 0.267 | V14: 0.276
A15: 100 | B15: 0.2712 | C15: 0.2816 | P15: 80 | Q15: 0.252 | R15: 0.282 | S15: 0.261 | T15: 0.291 | U15: 0.267 | V15: 0.276
P16: 90 | Q16: 0.252 | R16: 0.282 | S16: 0.261 | T16: 0.291 | U16: 0.267 | V16: 0.276
P17: 100 | Q17: =$B$1-0.02 -> 0.247 | R17: =$B$1+0.02 -> 0.287 | S17: =$C$1-0.02 -> 0.256 | T17: =$C$1+0.02 -> 0.296 | U17: 0.267 | V17: 0.276
B19: x | C19: y
A20: 10 | B20: 0.2459 | C20: 0.2438
A21: 20 | B21: 0.2537 | C21: 0.2542
A22: 30 | B22: 0.2521 | C22: 0.2534
A23: 40 | B23: 0.2543 | C23: 0.2566
A24: 50 | B24: 0.2571 | C24: 0.261
A25: 60 | B25: 0.261 | C25: 0.2664
A26: 70 | B26: 0.2626 | C26: 0.269
A27: 80 | B27: 0.2635 | C27: 0.271
A28: 90 | B28: 0.2641 | C28: 0.2732
A29: 100 | B29: 0.264 | C29: 0.277
B33: x | C33: y
A34: 10
A35: 20
A36: 30
A37: 40
A38: 50
A39: 60
A40: 70
A41: 80
A42: 90
A43: 100

Sheet WB_warm
A1: 暖色温标准 | B1: 0.313 | C1: 0.329
B4: MTK
B5: x | C5: y
A6: 10 | B6: 0.3314 | C6: 0.3562
A7: 20 | B7: 0.3248 | C7: 0.3466 | Q7: x-low | R7: x-high | S7: y-low | T7: y-high | U7: x-ideal | V7: y-ideal
A8: 30 | B8: 0.3154 | C8: 0.3309 | P8: 10 | Q8: =$B$1-0.025 -> 0.288 | R8: =$B$1+0.025 -> 0.338 | S8: =$C$1-0.025 -> 0.304 | T8: =$C$1+0.025 -> 0.354 | U8: =$B$1 -> 0.313 | V8: =$C$1 -> 0.329
A9: 40 | B9: 0.3149 | C9: 0.33 | P9: 20 | Q9: =$B$1-0.02 -> 0.293 | R9: =$B$1+0.02 -> 0.333 | S9: =$C$1-0.02 -> 0.309 | T9: =$C$1+0.02 -> 0.349 | U9: =$B$1 -> 0.313 | V9: =$C$1 -> 0.329
A10: 50 | B10: 0.315 | C10: 0.3312 | P10: 30 | Q10: =$B$1-0.02 -> 0.293 | R10: =$B$1+0.02 -> 0.333 | S10: =$C$1-0.02 -> 0.309 | T10: =$C$1+0.02 -> 0.349 | U10: 0.313 | V10: 0.329
A11: 60 | B11: 0.3147 | C11: 0.3313 | P11: 40 | Q11: =$B$1-0.015 -> 0.298 | R11: =$B$1+0.015 -> 0.328 | S11: =$C$1-0.015 -> 0.314 | T11: =$C$1+0.015 -> 0.344 | U11: 0.313 | V11: 0.329
A12: 70 | B12: 0.3136 | C12: 0.3304 | P12: 50 | Q12: 0.298 | R12: 0.328 | S12: 0.314 | T12: 0.344 | U12: 0.313 | V12: 0.329
A13: 80 | B13: 0.3122 | C13: 0.329 | P13: 60 | Q13: 0.298 | R13: 0.328 | S13: 0.314 | T13: 0.344 | U13: 0.313 | V13: 0.329
A14: 90 | B14: 0.3107 | C14: 0.3273 | P14: 70 | Q14: 0.298 | R14: 0.328 | S14: 0.314 | T14: 0.344 | U14: 0.313 | V14: 0.329
A15: 100 | B15: 0.3097 | C15: 0.3249 | P15: 80 | Q15: 0.298 | R15: 0.328 | S15: 0.314 | T15: 0.344 | U15: 0.313 | V15: 0.329
P16: 90 | Q16: 0.298 | R16: 0.328 | S16: 0.314 | T16: 0.344 | U16: 0.313 | V16: 0.329
P17: 100 | Q17: =$B$1-0.02 -> 0.293 | R17: =$B$1+0.02 -> 0.333 | S17: =$C$1-0.02 -> 0.309 | T17: =$C$1+0.02 -> 0.349 | U17: 0.313 | V17: 0.329
B18: 自研autogamma
B19: x | C19: y
A20: 10 | B20: 0.313 | C20: 0.3339
A21: 20 | B21: 0.3125 | C21: 0.3278
A22: 30 | B22: 0.3119 | C22: 0.3279
A23: 40 | B23: 0.3109 | C23: 0.3272
A24: 50 | B24: 0.3117 | C24: 0.3284
A25: 60 | B25: 0.3113 | C25: 0.3279
A26: 70 | B26: 0.3114 | C26: 0.3284
A27: 80 | B27: 0.3111 | C27: 0.3285
A28: 90 | B28: 0.3106 | C28: 0.3273
A29: 100 | B29: 0.3102 | C29: 0.3279
B33: x | C33: y
A34: 10
A35: 20
A36: 30
A37: 40
A38: 50
A39: 60
A40: 70
A41: 80
A42: 90
A43: 100
